Cogmind - Beta 13 @@@ ROGUE MODE // 2024.06.30 @ 15:04:12 Player: ywiktor Result: Self-destructed Performance ------------- Evolutions (2) 1000 Regions Visited (5) 1000 Robots Destroyed (9) 45 Value Destroyed (356) 356 Prototype IDs (4) 80 Alien Tech Used (0) 0 Bonus (630) 630 TOTAL SCORE: 3111 Bonus ------- Pacifist 270 Follower Combat Kills 60 Aligned with FarCom 300 Cogmind --------- Core Integrity 130/550 Matter 275/300 Energy 100/100 System Corruption 0% Temperature Cool (0) Movement Flying (120) Ox1 Location -8/Materials Parts ------- > --- POWER (1) -------- (None) > --- PROPULSION (4) --- Flight Unit > --- UTILITY (4) ------ Small Storage Unit Signal Interpreter Improved Signal Interpreter > --- WEAPON (2) ------- Katana > --- INVENTORY (8) ---- Light Ion Engine Light Nuclear Core Heavy EM Shotgun Guided Plasma Cannon Heavy Assault Rifle Peak State ------------ > --- POWER ------------ Ion Engine > --- PROPULSION ------- Aluminum Leg Aluminum Leg > --- UTILITY ---------- Small Storage Unit Signal Interpreter > --- WEAPON ----------- AWS/Gauss > --- INVENTORY -------- Light Nuclear Core Aluminum Leg Aluminum Leg Flight Unit Flight Unit Flight Unit ECM Suite Grenade Launcher [Rating: 22] Favorites ----------- Power Ion Engine Engine Ion Engine Propulsion Aluminum Leg Leg Aluminum Leg Flight Unit Flight Unit Utility Small Storage Unit Device ECM Suite Storage Small Storage Unit Processor Signal Interpreter Weapon EM Pulse Gun Energy Gun EM Pulse Gun Energy Cannon Guided Plasma Cannon Ballistic Gun Assault Rifle Launcher Grenade Launcher Slashing Weapon Katana Build | -11 -10 -10 -10 -9 -8 ------- Run | Yrd Mat Min Exi Min Mat Slots Evolved 4 | . . . . . 4 Power . | . . . . . . Propulsion 2 | . . . . . 2 Utility 2 | . . . . . 2 Weapon . | . . . . . . Parts Attached 29 | 7 1 1 6 1 13 Power 2 | 1 . . . . 1 Engine 2 | 1 . . . . 1 Core . | . . . . . . Reactor . | . . . . . . Propulsion 7 | 2 . . . . 5 Treads . | . . . . . . Leg 5 | 2 . . . . 3 Wheel . | . . . . . . Hover . | . . . . . . Flight 2 | . . . . . 2 Utility 8 | 1 1 1 2 . 3 Device 3 | . 1 . . . 2 Storage 3 | 1 . . 2 . . Processor 2 | . . 1 . . 1 Hackware . | . . . . . . Protection . | . . . . . . Artifact . | . . . . . . Weapon 12 | 3 . . 4 1 4 Energy Gun 3 | 1 . . 1 . 1 Energy Cannon 1 | . . . 1 . . Ballistic Gun 5 | 2 . . 2 . 1 Ballistic Cannon . | . . . . . . Launcher 2 | . . . . 1 1 Special Weapon . | . . . . . . Impact Weapon . | . . . . . . Slashing Weapon 1 | . . . . . 1 Piercing Weapon . | . . . . . . Special Melee Weapon . | . . . . . . Unidentified Prototypes 4 | . . . 3 . 1 Parts Lost 9 | . . . . . 9 Power 1 | . . . . . 1 Propulsion 5 | . . . . . 5 Utility 1 | . . . . . 1 Weapon 2 | . . . . . 2 Highest Loss Streak 8 | . . . . . 8 To Critical Strikes . | . . . . . . Average Slot Usage (%) 96 | . 85 100 96 100 92 Engine 12 | . 14 14 14 14 8 Leg 29 | . 28 28 28 28 32 Device 5 | . . 5 . . 14 Storage 12 | . 14 14 13 14 9 Processor 9 | . . 8 14 14 10 Energy Gun 12 | . 14 14 12 14 8 Ballistic Gun 10 | . 14 14 12 2 6 Launcher 1 | . . . . 11 1 Naked Turns . | . . . . . . Heaviest Build 22 | 14 15 15 20 15 22 Greatest Support 47 | 20 20 20 20 20 47 Greatest Overweight (x) 3 | . . . . . 3 Average Overweight (x) . | . . . . . . Largest Inventory Capacity 8 | 8 8 8 8 8 8 Average Capacity 7 | 6 8 8 7 8 8 Most Carried 8 | 6 7 8 8 8 8 Average Carried 7 | 4 6 7 7 8 7 Final Capacity 8 | 8 8 8 8 8 8 Final Carried 8 | 6 7 8 8 8 5 Class Distribution -------------------- 80% | Mutant 19% | Skirmisher Dominant Class ---------------- Mutant | -10/Materials Mutant | -10/Mines Mutant | -10/Exiles Mutant | -9/Mines Skirmisher | -8/Materials Resources | -11 -10 -10 -10 -9 -8 ----------- Run | Yrd Mat Min Exi Min Mat Matter Collected 494 | 251 19 20 . 70 134 Remotely . | . . . . . . Salvage Created 426 | . . . . . 426 Parts 27 | . . . . . 27 Haulers Intercepted . | . . . . . . Recyclers Shooed . | . . . . . . Parts Field Recycled . | . . . . . . Retrieved Matter . | . . . . . . Parts Self-Destructed . | . . . . . . Prevented . | . . . . . . Kills | -11 -10 -10 -10 -9 -8 ------- Run | Yrd Mat Min Exi Min Mat Combat Hostiles Destroyed 9 | . . . . . 9 Guns 8 | . . . . . 8 AOE 1 | . . . . . 1 Classes Destroyed 4 | . . . . . 4 Swarmer 2 | . . . . . 2 Grunt 4 | . . . . . 4 Sentry 2 | . . . . . 2 Hunter 1 | . . . . . 1 Best Kill Streak 4 | . . . . . 4 Combat Bots Only 4 | . . . . . 4 Max Kills in Single Turn 1 | . . . . . 1 Gunslinging . | . . . . . . Exploded 1 | . . . . . 1 Melee . | . . . . . . Uniques/NPCs Destroyed . | . . . . . . Combat | -11 -10 -10 -10 -9 -8 -------- Run | Yrd Mat Min Exi Min Mat Hostile Shots Fired 139 | . . 2 . . 137 Missed 38 | . . . . . 38 Damage Taken 1330 | . . 26 . . 1304 Core 420 | . . . . . 420 Absorbed by Shields . | . . . . . . Core Remaining (%) 100 | 100 . . . 100 . Volleys Fired 20 | . . . . . 20 Largest 2 | . . . . . 2 Hottest 73 | . . . . . 73 Shots Fired 38 | . . . . . 38 Gun 36 | . . . . . 36 Cannon . | . . . . . . Launcher 2 | . . . . . 2 Special . | . . . . . . Kinetic 18 | . . . . . 18 Thermal . | . . . . . . Explosive 2 | . . . . . 2 Electromagnetic 18 | . . . . . 18 Robot Hit Streak 8 | . . . . . 8 Robot Miss Streak 4 | . . . . . 4 Penetration Max . | . . . . . . Secondary Targets . | . . . . . . Shots Hit Robots 26 | . . . . . 26 Core Hits 21 | . . . . . 21 Critical Kills . | . . . . . . Critical Parts Destroyed . | . . . . . . Critical Strikes 1 | . . . . . 1 Corrupt 1 | . . . . . 1 Melee Attacks 7 | . . . . . 7 Impact . | . . . . . . Slashing 7 | . . . . . 7 Piercing . | . . . . . . Sneak Attacks . | . . . . . . Combat Hostiles . | . . . . . . Follow-up Attacks . | . . . . . . Damage Inflicted 616 | . . . . . 616 Guns 477 | . . . . . 477 Cannons . | . . . . . . Explosions 139 | . . . . . 139 Melee . | . . . . . . Ramming . | . . . . . . Kinetic 153 | . . . . . 153 Thermal . | . . . . . . Explosive 139 | . . . . . 139 Electromagnetic 324 | . . . . . 324 Impact . | . . . . . . Slashing . | . . . . . . Piercing . | . . . . . . Highest Corruption . | . . . . . . Average Corruption . | . . . . . . Corruption Purged . | . . . . . . Corruption Blocked . | . . . . . . Overload Shots . | . . . . . . Overflow Damage . | . . . . . . Projectiles . | . . . . . . Explosions . | . . . . . . Melee . | . . . . . . Knockbacks . | . . . . . . Impact . | . . . . . . Kinetic . | . . . . . . Secondary . | . . . . . . Self-Inflicted Damage 24 | . . . . . 24 Shots 1 | . . . . . 1 Rammed . | . . . . . . Targets Rammed . | . . . . . . Kicked . | . . . . . . Crushed . | . . . . . . Highest Temperature 44 | . . . . . 44 Average Temperature 23 | . . . . . 23 Received Heat Transfer 378 | . . 18 . . 360 Siege Activations . | . . . . . . Robots Corrupted . | . . . . . . Combat Hostiles . | . . . . . . Parts Fried 1 | . . . . . 1 Impact Corruptions . | . . . . . . Robots Melted . | . . . . . . Combat Hostiles . | . . . . . . Parts Melted . | . . . . . . Heat Transferred . | . . . . . . Parts Sabotaged . | . . . . . . Parts Stolen . | . . . . . . Parts Stripped . | . . . . . . Power Chain Reactions . | . . . . . . Alert | -11 -10 -10 -10 -9 -8 ------- Run | Yrd Mat Min Exi Min Mat Peak Influence 260 | . 59 53 . . 260 Initial 22 | . . 22 . . . Average 38 | . 27 30 . . 72 Maximum Alert Level 1 | . . . . . 1 Low Security (%) 96 | 100 100 100 . 100 88 Level 1 3 | . . . . . 11 Level 2 . | . . . . . . Level 3 . | . . . . . . Level 4 . | . . . . . . Level 5 . | . . . . . . High Security . | . . . . . . Max Security . | . . . . . . Squads Dispatched 3 | . 2 . . . 1 Investigation 1 | . 1 . . . . Extermination . | . . . . . . Reinforcement 2 | . 1 . . . 1 Assault . | . . . . . . Garrison . | . . . . . . Intercept . | . . . . . . Searches Triggered . | . . . . . . Construction Impeded . | . . . . . . Haulers Reinforced . | . . . . . . Active Scanning Responses . | . . . . . . Cargo Convoy Interrupts . | . . . . . . Stealth | -11 -10 -10 -10 -9 -8 --------- Run | Yrd Mat Min Exi Min Mat Distress Signals 3 | . . . . . 3 Communications Jammed . | . . . . . . Distress Signals . | . . . . . . Times Spotted 34 | . 5 2 . . 27 Peak Tracking Total 13 | . 4 2 . . 13 Tactical Retreats 8 | . . . . . 8 Traps | -11 -10 -10 -10 -9 -8 ------- Run | Yrd Mat Min Exi Min Mat Traps Triggered 1 | . 1 . . . . Indirectly . | . . . . . . Trap Hack Attempts . | . . . . . . Triggered . | . . . . . . Disarmed . | . . . . . . Reprogrammed . | . . . . . . Reused . | . . . . . . Traps Extracted . | . . . . . . Installed . | . . . . . . Triggered 1 | . . 1 . . . Machines | -11 -10 -10 -10 -9 -8 ---------- Run | Yrd Mat Min Exi Min Mat Machines Disabled . | . . . . . . Max in Single Turn . | . . . . . . Machines Repaired . | . . . . . . Machines Dismantled . | . . . . . . Machines Sabotaged . | . . . . . . Overloaded Fab Kills . | . . . . . . Hacking | -11 -10 -10 -10 -9 -8 --------- Run | Yrd Mat Min Exi Min Mat Machines Accessed 10 | . 4 . . . 6 Terminals 10 | . 4 . . . 6 Fabricators . | . . . . . . Repair Stations . | . . . . . . Recycling Units . | . . . . . . Scanalyzers . | . . . . . . Garrison Access . | . . . . . . Total Hacks 28 | . 11 . . . 17 Successful 16 | . 6 . . . 10 Failed 12 | . 5 . . . 7 Catastrophic . | . . . . . . Database Lockouts . | . . . . . . Manual 28 | . 11 . 1 . 16 Terminals 28 | . 11 . . . 17 Fabricators . | . . . . . . Repair Stations . | . . . . . . Recycling Units . | . . . . . . Scanalyzers . | . . . . . . Garrison Access . | . . . . . . Terminal Hacks 6 | . 2 . . . 4 Record 2 | . . . . . 2 Part Schematic 1 | . . . . . 1 Robot Analysis 1 | . . . . . 1 Recall Investigation 1 | . 1 . . . . Hauler Manifests 1 | . 1 . . . . Fabricator Hacks . | . . . . . . Repair Station Hacks . | . . . . . . Recycling Unit Hacks . | . . . . . . Scanalyzer . | . . . . . . Garrison Access Hacks . | . . . . . . Unauthorized Hacks 10 | . 4 . . . 6 Terminals 10 | . 4 . . . 6 Botnet 10 | . 4 . . . 6 Fabricators . | . . . . . . Repair Stations . | . . . . . . Recycling Units . | . . . . . . Scanalyzers . | . . . . . . Garrison Access . | . . . . . . Data Cores Recovered . | . . . . . . Used . | . . . . . . Hacking Detections 8 | . 2 . . . 6 Full Trace Events 1 | . 1 . . . . Feedback Events . | . . . . . . Feedback Blocked . | . . . . . . Robot Schematics Acquired . | . . . . . . Robots Built . | . . . . . . Authchips . | . . . . . . Time . | . . . . . . Total Robot Build Rating . | . . . . . . Part Schematics Acquired 1 | . . . . . 1 Parts Built . | . . . . . . Authchips . | . . . . . . Time . | . . . . . . Total Part Build Rating . | . . . . . . Parts Repaired . | . . . . . . Time . | . . . . . . Parts Recycled . | . . . . . . Recycled Matter . | . . . . . . Retrieved Matter . | . . . . . . Retrieved Components . | . . . . . . Parts Scanalyzed . | . . . . . . Part Schematics Acquired . | . . . . . . Parts Damaged . | . . . . . . Bothacking | -11 -10 -10 -10 -9 -8 ------------ Run | Yrd Mat Min Exi Min Mat Used RIF Installer . | . . . . . . Robots Hacked . | . . . . . . Non-combat . | . . . . . . Combat . | . . . . . . Robot Hacks Applied . | . . . . . . Relay Couplers Released . | . . . . . . Fabnet Peak Effective % . | . . . . . . Robots Rewired . | . . . . . . Allies Hacked . | . . . . . . Hacks Repelled . | . . . . . . Allies | -11 -10 -10 -10 -9 -8 -------- Run | Yrd Mat Min Exi Min Mat Total Allies 3 | . . 3 . . . Largest Group 3 | . . 3 1 1 . Highest-Rated Group 40 | . . 40 16 16 . Highest-Rated Ally 16 | . . 16 16 16 . Total Orders . | . . . . . . Ally Attacks 14 | . . 12 . 2 . Total Damage 121 | . . 107 . 14 . Kills 2 | . . 2 . . . Allies Corrupted . | . . . . . . Allies Melted . | . . . . . . Intel | -11 -10 -10 -10 -9 -8 ------- Run | Yrd Mat Min Exi Min Mat Robot Analysis Total 1 | . . . . . 1 Derelict Logs Recovered 3 | . . 1 . 2 . Drone Launches . | . . . . . . Drone Recoveries . | . . . . . . Exploration | -11 -10 -10 -10 -9 -8 ------------- Run | Yrd Mat Min Exi Min Mat Turns Passed 2810 | 75 262 893 470 321 789 Spaces Moved 2119 | 54 212 694 373 265 521 Core 29 | 8 . . . . 21 Treads . | . . . . . . Legs 2058 | 46 212 694 373 265 468 Wheels . | . . . . . . Hover . | . . . . . . Flight 32 | . . . . . 32 Fastest Speed 37 | 50 120 120 120 120 37 Average Speed 119 | 109 120 120 120 120 117 Slowest Speed 200 | 120 120 120 120 120 200 Overloaded Moves . | . . . . . . Propulsion Burnouts . | . . . . . . Robots Hopped . | . . . . . . Cave-ins Triggered . | . . . . . . Exploration Rate (%) 48 | 5 43 98 61 55 30 Regions Visited 5 Branch Regions 3 Pre-discovered Areas 2 | . . 1 . 1 . Known Exits Taken 3 | . . 1 1 1 . Unknown Exits Taken 2 | 1 1 . . . . Scrap Searched 4 | . . 2 . 2 . Spaces Dug 6 | . . . . . 6 Terrain Destroyed 16 | . . . . . 16 Melee 6 | . . . . . 6 Projectile . | . . . . . . AOE 10 | . . . . . 10 Terrain Rammed . | . . . . . . Walls Destroyed . | . . . . . . Machines Disabled . | . . . . . . Actions | -11 -10 -10 -10 -9 -8 --------- Run | Yrd Mat Min Exi Min Mat Total 2358 | 67 221 756 397 267 650 Wait 132 | . . 51 4 2 75 Move 2114 | 53 211 693 372 264 521 Hop . | . . . . . . Pick Up 28 | 6 5 5 6 . 6 Fast Attach 17 | 6 1 1 6 . 3 Attach 8 | 1 . . . . 7 Detach 3 | 1 . 1 . . 1 Swap 4 | . . . . 1 3 Drop 25 | . 4 5 9 . 7 Fire 20 | . . . . . 20 Melee 7 | . . . . . 7 Ram . | . . . . . . Kick . | . . . . . . Crush . | . . . . . . Escape Stasis . | . . . . . . Rewire . | . . . . . . Trap . | . . . . . . Miscellaneous . | . . . . . . Route ------- -11/Scrapyard -10/Materials (discovered 2 exits: [*Mat] / [*Min]) -10/Mines (discovered 3 exits: [*Mat x2] / *Exi) -10/Exiles (discovered 2 exits: *Min x2) -9/Mines -8/Materials (discovered 1 exit: Fac) History --------- Turn | Location | Event 4 | -11/Scrapyard | Discovered new exit (range 16) 76 | -11/Scrapyard | Entered Materials 261 | -10/Materials | Discovered new exit (range 8) 303 | -10/Materials | Discovered new exit (range 14) 309 | -10/Materials | Build established: Mutant 338 | -10/Materials | Entered Mines 343 | -10/Mines | Met a Derelict bent on vengeance 366 | -10/Mines | Discovered new exit (range 14) 735 | -10/Mines | Assisted by bots powering up and referring to "LRC-V3" 831 | -10/Mines | Discovered new exit (range 6) 973 | -10/Mines | Learned Materials terminal intel 1015 | -10/Mines | Learned location of Storage (-9) 1220 | -10/Mines | Deemed a non-threat by the Exiles lab entrance 1221 | -10/Mines | Discovered new exit (range 5) 1224 | -10/Mines | Identified exit to Exiles 1231 | -10/Mines | Entered Exiles 1231 | -10/Exiles | Accompanied by 1 ally 1264 | -10/Exiles | Met 8R-AWN 1283 | -10/Exiles | Met EX-HEX 1325 | -10/Exiles | Met EX-BIN 1338 | -10/Exiles | Aligned with FarCom system 1339 | -10/Exiles | Given EX-Vault access code 1372 | -10/Exiles | Opened EX-Vault 1382 | -10/Exiles | Found Prototype Ballistic Gun 1382 | -10/Exiles | Identified AWS/Gauss 1392 | -10/Exiles | Found Prototype Storage 1392 | -10/Exiles | Identified Superbattery 1398 | -10/Exiles | Found Prototype Energy Cannon 1398 | -10/Exiles | Identified Gui. Plasma Cannon 1468 | -10/Exiles | Warned to stay clear of 0b10 Research branches 1502 | -10/Exiles | Met EX-DEC 1545 | -10/Exiles | Discovered new exit (range 10) 1555 | -10/Exiles | Identified exit to Mines 1684 | -10/Exiles | Discovered exit to Mines (range 14) 1701 | -10/Exiles | Left Exiles lab with Gui. Plasma Cannon 1701 | -10/Exiles | Entered Mines 1701 | -9/Mines | Accompanied by 1 ally 1937 | -9/Mines | Learned location of 1 exit from Materials 2012 | -9/Mines | Discovered new exit (range 9) 2021 | -9/Mines | Identified exit to Materials 2022 | -9/Mines | Entered Materials 2022 | -8/Materials | Evolved 4 slots: Propulsion x2, Utility x2 2023 | -8/Materials | Identified exit to Factory 2024 | -8/Materials | Loaded intel: 12 terminal locations 2428 | -8/Materials | Build established: Skirmisher 2754 | -8/Materials | Core integrity fell below 50% 2777 | -8/Materials | Lost 8 parts (1p4n1u2w) 2811 | -8/Materials | Self-destructed Last Messages --------------- 02735_ Penetrated by Slug. 02738_ Aluminum Leg destroyed. 02738_ Grenade Launcher destroyed. 02738_ Slug penetrates Wall. 02738_ ECM Suite destroyed. 02739_ Aluminum Leg destroyed. 02741_ Slug penetrates Wall. 02742_ Hvy. Assault Rifle destroyed. 02744_ Penetrated by Slug. 02746_ Titanium Leg destroyed. 02746_ Penetrated by Slug. 02746_ Imp. Ion Engine destroyed. 02746_ K-01 Serf destroyed. 02748_ Critical hit (Burn: +37). 02749_ Slug penetrates Wall. 02750_ Acquired 12 matter. 02751_ Penetrated by Slug. 02769_ Critical hit (Burn: +37). 02791_ Flight Unit destroyed. [Achievement: This Is Interesting...] Map ----- +----------------------------------------------------+ | | | | | | | | | | | | | | | | | | | | | | | | | | | | | | | | | | | ??????#############??###############? | | ??????# = #??# #? | | ??????# """ #??# #? | | ??????# """"" #??# """"" #? | | ??????# """"" #??# """"""""" #? | | ??????# """"" #### """ """ #? | | ??????# = """ Y" " x #? | | ??????# [ !l ####+#####+#######? | | ??????######@#######x [ T #???? | | ?????????# = s gg #???? | | ##???????# ##+##### | | # #####??#### """ # # | | # #?????# #### """"" #[ = # | | # """ ####### #??# """"" # # | | # "T" + #??# """"" # [ # | | # # #??# """ / [ # | | #!! # #??# # [[ # | | #!! + #??# ! Y ######## | | # # #??# | | # # #??# | | # #### #??# ###########"# | | # #??# #??######?????# # | | # #??#! !#?????????????# # | | # #??##!!!!##?????????????# " | | #######???######??????????????# """ # | | ??????????????????????????????# """ # | | ??????????????????????????????# """ # | | ??????????????????????????????# # | | ??????????????????????????????# """ # | | ??????????????????????######### """ # | | ??????????????????????# ## """ # | | ??????????????????????# """ ## ! # | | ??????????????????????# """ ## [%% # | +----------------------------------------------------+ Best States ------------- Heat Dissipation 35 Energy Generation 12 Energy Capacity 265 Matter Stores 300 Matter Capacity 300 Sight Range 16 Robot Scan Range 15 Terrain Scan Density 10 Evasion (%) 62 Item Schematics ----------------- Hacking Suite | -8/Materials | Hacked Robot Schematics ------------------ None Fabricated ------------ Nothing Alien Tech Used ----------------- None Achievements -------------- This Is Interesting... Challenges ------------ None Game ------ Seed ActuatorPotentialDevice Manual? 0 Play Time 00:27:29 Cumulative 21.8 hours Start 2024.06.25 @ 15:48:48 End 2024.06.30 @ 15:04:12 Sessions 5 Manual Loads 0 Difficulty Rogue Special Mode None Game No. 23 Rogue 23 Adventurer 0 Explorer 0 Win Type - Total 0 Types 0/0/0/0/0/0/0/0/0 Lore% 27 Gallery% 30 Achievement% 30 Wizard Run 0 Options --------- Layout 1 ASCII 0 Keyboard 0 Movement Numpad Keybinds 0 Fullscreen 1 Font 32/SmallcapsGlow Map View 50x35 Zoom Use 0% Tactical HUD 1 Map Filters NONE Filters NONE Steam 1 RUN: fcf20a44-646b-4a89-a182-0a2161462695